bitfinex/quotes_ETHUSD_20240707
["timestamp","ask_amount","ask_price","bid_price","bid_amount"]
[1720310872152,0.55,3067.8,3067.5,0.06583732]
[1720310873912,0.55,3067.9,3067.5,0.06583732]
[1720310874842,0.55,3067.9,3067.5,3.32579732]
[1720310875230,0.55,3067.9,3067.5,3.25996]
[1720310875636,0.55,3067.9,3067.6,3.25986]
[1720310876021,7.39,3068.0,3067.7,0.06581536]
[1720310876221,7.39,3068.0,3067.6,3.25986]
[1720310876755,7.39,3068.0,3067.7,0.06565815]
[1720310878432,1.35648637,3068.1,3067.7,0.06565815]
[1720310878748,2.38536666,3068.0,3067.7,0.06565815]
[1720310878957,0.55,3068.0,3067.7,3.25972]
[1720310879160,0.55,3068.1,3067.8,0.06563871]
[1720310879318,1.8354846,3068.0,3067.7,3.25972]
[1720310879518,0.55,3068.1,3067.8,0.06563871]
[1720310879757,1.83549901,3068.0,3067.7,3.25972]
[1720310879944,0.55,3068.1,3067.8,0.06563871]
[1720310880145,1.83562857,3068.0,3067.7,3.25972]
[1720310880342,0.70741877,3067.9,3067.8,0.06563871]
[1720310880523,0.70741877,3067.9,3067.7,3.25976]
[1720310880727,1.90648637,3068.1,3067.7,3.25976]
[1720310880934,0.70730791,3068.0,3067.8,0.06563871]
[1720310881122,1.83553408,3068.0,3067.7,3.25976]
[1720310881458,1.90648637,3068.1,3067.8,0.06563871]
[1720310881619,1.8355679,3068.0,3067.8,3.32529871]
[1720310881825,1.35648637,3068.2,3067.8,3.25966]
[1720310882046,0.70694786,3068.1,3067.9,0.06563377]
[1720310882247,8.74648637,3068.3,3067.9,3.32518377]
[1720310882433,8.74648637,3068.3,3068.2,3.25923]
[1720310882434,7.39,3068.3,3068.2,3.25923]
[1720310883558,7.39,3068.3,3068.2,3.32484896]
[1720310889336,8.129,3068.3,3068.2,0.06561896]
[1720310889540,8.129,3068.3,3068.0,3.25938]
[1720310889742,8.129,3068.3,3068.2,0.06527573]
[1720310890093,8.129,3068.3,3067.4,3.26007]
[1720310890094,15.95953437,3068.3,3067.4,3.26007]
[1720310890236,7.44354002,3068.2,3067.4,3.26007]
[1720310890438,0.7078188,3068.1,3067.4,3.26007]
[1720310890634,0.7078188,3068.1,3067.4,3.26]
[1720310890635,0.55,3068.0,3067.4,3.26]
[1720310891262,6.41390782,3068.2,3067.6,6.51966]
[1720310891263,0.55,3068.1,3067.6,6.51966]
[1720310891624,7.72601218,3068.3,3068.0,3.25943]
[1720310891825,7.39,3068.3,3068.2,3.25923]
[1720310893228,7.39,3068.3,3068.0,3.25937]
[1720310893426,19.7,3068.7,3068.1,3.25933]
[1720310893628,1.91664022,3068.6,3068.1,3.25933]
[1720310893863,1.91664022,3068.6,3068.0,3.25937]
[1720310894191,0.70788775,3068.5,3067.8,6.51922]
[1720310894485,0.70788775,3068.5,3067.8,3.25958]
[1720310894486,0.55,3068.4,3067.8,3.25958]
[1720310894686,1.06080681,3068.4,3067.8,3.25958]
[1720310895190,1.06080681,3068.4,3067.9,3.25955]
[1720310895887,1.12814398,3068.3,3068.0,0.06528561]
[1720310896055,0.55,3068.2,3067.7,3.25976]
[1720310896262,0.55,3068.2,3067.5,3.25991]
[1720310896467,0.380913,3068.1,3067.5,3.25991]
[1720310896673,0.55,3068.0,3067.5,3.25991]
[1720310896872,0.55,3068.0,3067.5,6.51981]
[1720310897056,0.55,3068.0,3067.5,3.2599]
[1720310897676,0.55,3068.0,3067.3,3.26011]
[1720310898013,0.55,3068.0,3066.9,2.2539]
[1720310898014,2.4217,3067.8,3066.9,3.26055]
[1720310898216,6.44991234,3067.7,3066.9,3.26055]
[1720310898416,5.38543001,3067.6,3066.9,3.26055]
[1720310898712,1.83543001,3067.5,3066.7,3.2608]
[1720310899017,1.67827793,3067.4,3067.0,0.06316677]
[1720310899295,0.55,3067.4,3066.5,3.261]
[1720310899461,4.25637329,3067.3,3066.5,3.261]
[1720310899657,1.67859195,3067.2,3066.6,0.06318653]
[1720310899869,0.4100292,3067.1,3066.5,3.261]
[1720310900197,0.55,3067.0,3066.5,3.261]
[1720310903386,0.55,3067.0,3066.3,3.26123]
[1720310903576,0.55,3067.0,3066.4,3.26107]
[1720310903894,0.55,3067.0,3066.4,3.32426642]
[1720310905361,0.55,3067.0,3066.4,0.06319642]
[1720310905568,0.42204392,3066.9,3066.0,3.26151]
[1720310905797,2.4299,3066.7,3066.5,0.06386843]
[1720310906005,0.55,3066.6,3066.0,3.26149]
[1720310907163,3.81104,3066.6,3065.8,3.26174]
[1720310907369,4.32897717,3066.5,3065.6,3.26199]
[1720310907571,3.26137,3066.2,3065.4,3.26215]
[1720310908108,0.55,3066.1,3065.4,3.26215]
[1720310909070,3.55,3066.1,3065.4,3.26215]
[1720310909268,3.55,3066.1,3063.9,6.69772]
[1720310909269,2.4299,3065.8,3064.9,3.26271]
[1720310909468,0.55,3065.7,3064.9,3.26271]
[1720310909670,0.55,3065.7,3065.0,3.26257]
[1720310909904,0.55,3065.7,3065.1,3.2625]
[1720310910566,2.239346,3065.7,3064.9,3.26266]
[1720310911290,2.239346,3065.7,3064.7,3.2629]
[1720310911492,2.239346,3065.7,3064.4,2.2637]
[1720310911716,3.26211,3065.5,3064.7,3.26294]
[1720310911881,0.55,3065.4,3064.7,3.26294]
[1720310912207,0.931211,3065.4,3064.8,0.06185402]
[1720310912379,0.55,3065.4,3064.8,0.06185402]
[1720310912607,3.26202,3065.6,3064.8,0.06185402]
[1720310912608,0.55,3065.5,3064.8,0.06185402]
[1720310913378,1.689346,3065.7,3065.1,3.26251]
[1720310913583,0.55,3065.6,3065.1,3.26251]
[1720310913783,0.55,3065.6,3065.2,0.06226745]
[1720310913986,0.2239346,3065.5,3065.2,0.06226745]
[1720310915589,0.55,3065.4,3064.8,3.26283]
[1720310915788,0.55,3065.4,3065.3,0.06264726]
[1720310916017,0.55,3065.4,3065.1,3.26251]
[1720310916216,0.55,3065.4,3065.3,0.06264726]
[1720310916414,0.55,3065.6,3065.2,0.06265221]
[1720310916615,1.05056387,3065.6,3065.3,0.06264726]
[1720310917014,1.05056387,3065.6,3064.8,6.52561]
[1720310917217,1.05056387,3065.6,3065.4,0.06264232]
[1720310917413,1.05056387,3065.6,3064.8,3.26277]
[1720310917623,1.05056387,3065.6,3064.8,6.52555]
[1720310917813,0.63382326,3065.5,3064.9,3.32539705]
[1720310918028,0.55,3065.4,3064.9,0.06266705]
[1720310918179,2.426,3065.3,3064.9,0.06266705]
[1720310918378,2.426,3065.3,3064.7,3.2629]
[1720310918379,0.55,3065.2,3064.7,3.2629]
[1720310918597,0.55,3065.2,3065.0,0.06267663]
[1720310918820,0.55,3065.2,3064.7,3.2629]
[1720310919025,0.55,3065.2,3065.1,0.06267169]
[1720310919221,0.8476,3065.2,3064.7,3.2629]
[1720310919431,0.55,3065.2,3065.1,0.06270075]
[1720310919627,0.55,3065.2,3064.7,3.2629]
[1720310919992,0.55,3065.2,3064.8,0.06271559]
[1720310920318,0.55,3065.2,3064.9,0.06271064]
[1720310920516,0.55,3065.2,3064.7,3.26289]
[1720310920712,0.8476,3065.2,3065.0,0.06270569]
[1720310920892,0.8476,3065.2,3064.7,3.26289]
[1720310920893,0.8476,3065.2,3064.8,3.26283]
[1720310921235,0.55,3065.2,3064.9,0.06271064]
[1720310923231,0.55,3065.2,3064.9,6.58819064]
[1720310923731,0.55,3065.2,3065.0,3.26264]
[1720310923890,0.55,3065.2,3065.0,3.32534569]
[1720310925431,0.55,3065.2,3065.0,0.06270569]
[1720310925735,0.2976,3065.1,3064.9,3.26268]
[1720310925911,0.55,3065.2,3065.1,0.06268622]
[1720310926101,0.55,3065.2,3064.9,3.26268]
[1720310926443,0.55,3065.2,3065.0,0.06268148]
[1720310926943,7.39,3065.5,3065.4,3.26221]
[1720310927298,7.39,3065.5,3065.4,0.06267138]
[1720310927530,7.39,3065.5,3065.1,3.2625]
[1720310927819,7.39,3065.5,3065.4,0.06267138]
[1720310927992,7.39,3065.5,3065.1,3.2625]
[1720310928193,7.39,3065.5,3065.4,0.06267138]
[1720310928425,8.36277,3065.5,3065.1,3.2625]
[1720310928629,0.55,3065.4,3065.1,3.2625]
[1720310929625,0.55,3065.5,3065.1,3.2625]
[1720310929813,0.55,3065.5,3065.0,3.26263]
[1720310930142,3.55,3065.5,3065.0,3.26263]
[1720310930299,4.13877,3065.5,3065.0,3.26263]
[1720310931139,3.55,3065.5,3065.1,3.2625]
[1720310931470,0.55,3065.5,3065.1,6.52494]
[1720310932428,0.55,3065.5,3065.2,3.26242]
[1720310934127,0.55,3065.5,3065.0,3.26258]
[1720310934643,0.55,3065.5,3065.1,3.26252]
[1720310934844,0.83877,3065.5,3065.1,3.26252]
[1720310936060,1.12918104,3065.4,3065.1,3.26252]
[1720310936261,0.55,3065.3,3065.1,3.26252]
[1720310936465,0.83877,3065.5,3065.1,3.26252]
[1720310936637,1.1291683,3065.4,3065.1,3.26252]
[1720310936844,0.55,3065.3,3065.1,3.26252]
[1720310937165,0.55,3065.5,3065.1,3.26246]
[1720310937485,1.12912643,3065.4,3065.2,3.26242]
[1720310937785,0.55,3065.3,3065.2,3.26242]
[1720310937966,0.55,3065.5,3065.2,3.26242]
[1720310938265,1.12915084,3065.4,3065.2,3.26242]
[1720310938468,1.67914575,3065.3,3065.2,3.26242]
[1720310938978,1.67914575,3065.3,3064.9,3.26268]
[1720310939139,1.12914575,3065.2,3064.9,3.26267]
[1720310939646,1.12914575,3065.2,3065.0,3.26263]
[1720310940445,1.12914575,3065.2,3065.1,3.26253]
[1720310940669,0.55,3065.3,3065.1,6.52506]
[1720310940975,0.55,3065.5,3065.1,3.26253]
[1720310941274,1.12914245,3065.4,3065.1,3.26253]
[1720310941484,0.55,3065.3,3065.1,3.26253]
[1720310942076,0.55,3065.3,3065.2,3.26242]
[1720310942282,0.55,3065.4,3065.2,3.26242]
[1720310942643,0.55,3065.4,3065.3,3.26232]
[1720310942849,4.67910513,3065.6,3065.3,3.26232]
[1720310943079,1.12910513,3065.5,3065.3,3.26232]
[1720310943382,3.55,3065.6,3065.4,0.0626835]
[1720310943688,1.12907615,3065.5,3065.3,3.26232]
[1720310943859,1.12907615,3065.4,3065.1,3.26245]
[1720310944067,0.55,3065.3,3065.1,3.26245]
[1720310944363,1.12914598,3065.2,3065.0,3.26258]
[1720310944790,1.12914598,3065.2,3065.1,3.26253]
[1720310944973,0.55,3065.3,3065.1,3.26253]
[1720310944974,0.55,3065.3,3065.1,6.52499]
[1720310945158,0.55,3065.5,3065.1,6.52499]
[1720310945359,1.12912848,3065.4,3065.1,6.52499]
[1720310945559,0.55,3065.3,3065.2,3.26242]
[1720310945960,0.55,3065.5,3065.2,3.26242]
[1720310946156,1.12911567,3065.4,3065.2,3.26242]
[1720310946382,0.55,3065.3,3065.2,3.26242]
[1720310946585,0.55,3065.5,3065.2,3.26242]
[1720310946791,1.12911577,3065.4,3065.2,3.26242]
[1720310946953,0.55,3065.3,3065.2,3.26242]
[1720310947366,0.55,3065.5,3065.2,3.26242]
[1720310947568,1.12911161,3065.4,3065.2,3.26242]
[1720310947767,0.55,3065.5,3065.2,3.26242]
[1720310947768,0.55,3065.3,3065.2,3.26242]
[1720310948084,1.1291138,3065.3,3065.1,3.26246]
[1720310948252,0.55,3065.5,3065.1,3.26246]
[1720310948451,1.1291554,3065.4,3065.1,3.26246]
[1720310948676,1.6791554,3065.3,3065.1,3.26246]
[1720310948873,1.13877,3065.5,3065.1,3.26246]
[1720310949148,1.83293099,3065.4,3065.1,3.26246]
[1720310949378,1.13877,3065.5,3065.1,3.26246]
[1720310949379,0.55,3065.3,3065.1,3.26246]
[1720310949563,0.55,3065.5,3065.1,6.52492]
[1720310949772,0.55,3065.5,3065.2,3.26242]
[1720310949773,1.12909873,3065.4,3065.2,3.26242]
[1720310949979,0.55,3065.3,3065.2,3.26242]
[1720310950491,0.55,3065.5,3065.2,3.26242]
[1720310950690,1.83281939,3065.4,3065.2,3.26242]
[1720310950989,3.0,3065.6,3065.2,3.26242]
[1720310950990,0.55,3065.3,3065.2,3.26242]
[1720310951353,1.29054426,3065.4,3065.2,3.26242]
[1720310951689,1.29054426,3065.4,3065.1,3.26246]
[1720310951690,0.74054426,3065.3,3065.1,3.26246]
[1720310951887,1.86968794,3065.3,3065.1,3.26246]
[1720310952097,1.86968794,3065.2,3065.1,3.26246]
[1720310952498,1.86971993,3065.2,3065.1,3.26246]
[1720310953382,2.76073129,3065.2,3065.1,3.26246]
[1720310954102,2.76082076,3065.2,3065.1,3.26246]
[1720310954320,0.74063373,3065.2,3065.1,6.52499]
[1720310954798,0.74066904,3065.3,3065.2,3.26242]
[1720310955004,1.35633833,3065.4,3065.3,3.26232]
[1720310955185,4.11702709,3065.4,3065.3,3.26232]
[1720310955578,4.11702709,3065.4,3065.1,3.26244]
[1720310955778,4.11702709,3065.3,3065.1,3.26244]
[1720310955980,1.63160728,3065.2,3065.1,3.26244]
[1720310956303,2.98794561,3065.2,3065.1,3.26244]
[1720310956463,4.11710967,3065.2,3065.1,3.26244]
[1720310957080,1.63158076,3065.2,3065.1,3.26244]
[1720310957307,1.63158076,3065.2,3065.1,6.52497]
[1720310957490,0.74061039,3065.2,3065.1,9.7875]
[1720310957664,1.35633833,3065.6,3065.1,3.26244]
[1720310957864,0.74080092,3065.5,3065.4,5.58351]
[1720310958097,7.39,3065.8,3065.4,2.3213]
[1720310958404,0.74074789,3065.7,3065.6,6.524]
[1720310958704,1.35633833,3066.0,3065.9,3.26168]
[1720310958882,2.98877851,3066.0,3065.9,3.26168]
[1720310959080,4.11767334,3066.0,3065.9,3.26168]
[1720310959396,5.43828537,3066.0,3065.7,3.26189]
[1720310959709,1.63248394,3065.9,3065.8,3.26177]
[1720310960003,0.74136545,3065.9,3065.8,3.26177]
[1720310960218,0.74145446,3066.0,3065.9,3.26168]
[1720310960410,1.63256063,3066.0,3065.9,3.26168]
[1720310960571,0.741453,3066.0,3065.9,3.26168]
[1720310960773,1.63251051,3066.0,3065.9,3.26168]
[1720310960995,0.741453,3066.0,3065.9,3.26168]
[1720310961200,1.63251809,3066.0,3065.9,3.26168]
[1720310961373,0.741453,3066.0,3065.9,3.26168]
[1720310963685,0.741453,3066.1,3065.9,3.26168]
[1720310963899,2.47726474,3066.1,3065.9,3.26168]
[1720310964231,0.741453,3066.0,3065.9,3.26168]
[1720310965033,0.741453,3066.0,3065.5,3.26206]
[1720310965270,0.741453,3066.0,3065.9,0.0622811]
[1720310965529,0.741453,3066.0,3065.8,3.26178]
[1720310965713,0.741453,3066.0,3065.9,0.06228836]
[1720310966720,0.741453,3066.0,3065.9,3.32396836]
[1720310967630,0.741453,3066.1,3065.9,3.32396836]
[1720310967933,0.741453,3066.0,3065.9,3.32396836]
[1720310968297,0.741453,3066.0,3065.9,0.06228836]
[1720310968496,2.4238,3065.9,3065.3,3.26223]
[1720310968721,3.53864674,3065.8,3065.3,3.26223]
[1720310968892,1.63754039,3065.7,3065.3,3.26223]
[1720310969131,1.29129572,3065.6,3065.3,3.26223]
[1720310969328,0.74129572,3065.5,3065.3,3.26223]
[1720310969565,0.74129572,3065.5,3065.1,3.26246]
[1720310969747,0.55,3065.4,3065.1,3.26246]
[1720310969944,0.55,3065.4,3065.2,3.26242]
[1720310970178,0.74091533,3065.3,3065.2,3.26242]
[1720310970340,1.29091533,3065.3,3065.0,3.26255]
[1720310970675,0.55,3065.5,3065.0,3.26255]
[1720310970971,0.74088755,3065.4,3065.0,3.26255]
[1720310971132,0.55,3065.3,3065.0,3.26255]
[1720310972448,0.55,3065.4,3065.0,3.26255]
[1720310972763,0.74090462,3065.3,3065.0,3.26255]
[1720310973376,0.74090462,3065.3,3065.1,3.3248555]
[1720310973524,0.74090462,3065.3,3065.1,6.5873255]
[1720310973725,1.35597907,3065.6,3065.3,3.26227]
[1720310973950,0.74087425,3065.5,3065.3,3.26227]
[1720310974149,0.74087425,3065.5,3065.4,0.06255031]
[1720310974564,0.74087425,3065.5,3065.1,3.26253]
[1720310974565,4.66732482,3065.5,3065.1,3.26253]
[1720310974728,1.29087425,3065.4,3065.1,3.26253]
[1720310974929,0.74087425,3065.3,3065.2,0.06256021]
[1720310975128,1.29087425,3065.3,3065.2,0.06256021]
[1720310975633,1.29087425,3065.3,3065.0,3.26257]
[1720310975835,0.74087425,3065.2,3065.0,3.26257]
[1720310980264,0.74087425,3065.2,3064.8,3.26279]
[1720310981179,0.74087425,3065.2,3064.7,3.26295]
[1720310981482,0.55,3065.1,3064.7,3.26295]
[1720310981781,0.74087425,3065.0,3064.7,6.52583]
[1720310981951,0.74087425,3065.0,3064.7,6.52578]
[1720310982346,2.4244,3064.9,3064.1,0.1145005]
[1720310982551,4.61954173,3064.2,3064.1,0.1145005]
[1720310982752,6.0233804,3064.2,3064.1,0.1145005]
[1720310982946,9.5733804,3064.2,3064.1,0.1145005]
[1720310983258,7.55308191,3064.2,3064.1,0.1145005]
[1720310983460,13.88215743,3064.2,3064.1,0.1145005]
[1720310983641,17.01941552,3064.2,3064.1,0.1145005]
[1720310984459,15.32690362,3064.2,3064.1,0.1145005]
[1720310985565,15.54956519,3064.2,3064.1,0.1145005]
[1720310986781,12.77356665,3064.2,3064.1,0.1145005]
[1720310987470,12.03397474,3064.2,3064.1,0.1145005]
[1720310988845,12.03397474,3064.2,3064.1,0.0578005]
[1720310997263,8.77048474,3064.2,3064.1,0.0578005]
[1720311001190,11.04148474,3064.2,3064.1,0.0578005]
[1720311001997,14.30497474,3064.2,3064.1,0.0578005]
[1720311002973,16.75747474,3064.2,3064.1,0.0578005]
[1720311003504,13.49398474,3064.2,3064.1,0.0578005]
[1720311003659,16.75747474,3064.2,3064.1,0.0578005]
[1720311003862,13.49398474,3064.2,3064.1,0.0578005]
[1720311004161,16.75747474,3064.2,3064.1,0.0578005]
[1720311004468,17.88728952,3064.2,3064.1,0.0578005]
[1720311004994,14.62379952,3064.2,3064.1,0.0578005]
[1720311005370,14.62380373,3064.2,3064.1,0.0578005]
[1720311005592,11.04148474,3064.2,3064.1,0.0578005]
[1720311006298,11.04148474,3064.2,3064.1,0.109198]
[1720311006628,12.17126968,3064.2,3064.1,0.109198]
[1720311006916,3.0,3064.2,3064.1,0.109198]
[1720311007115,3.0,3064.2,3064.1,0.0578005]
[1720311007305,3.0,3064.2,3064.1,0.10925617]
[1720311007506,5.53412,3064.6,3064.1,0.10925617]
[1720311007507,3.0,3064.5,3064.1,0.10925617]
[1720311007722,1.12969906,3064.4,3064.1,0.10925617]
[1720311007930,0.41296991,3064.3,3064.1,0.10925617]
[1720311008086,0.96296991,3064.3,3064.1,0.10925617]
[1720311009624,1.12971973,3064.2,3064.1,0.10925617]
[1720311009914,1.67971973,3064.2,3064.1,0.10925617]
[1720311010117,3.55,3064.2,3064.1,0.10925617]
[1720311010279,2.07602355,3064.2,3064.1,0.10925617]
[1720311010481,1.67972538,3064.2,3064.1,0.10925617]
[1720311011233,4.67972538,3064.2,3064.1,0.10925617]
[1720311012019,1.67969792,3064.2,3064.1,0.10925617]
[1720311012382,1.67959011,3064.2,3064.1,0.10925617]
[1720311012785,1.12959011,3064.2,3064.1,3.37285617]
[1720311014119,1.12959011,3064.2,3064.1,6.63645617]
[1720311014324,1.959,3065.3,3064.5,3.26313]
[1720311014325,3.26247,3065.2,3064.5,3.26313]
[1720311014619,1.67944302,3065.1,3064.5,3.26313]
[1720311014924,1.12944302,3065.0,3064.5,3.26313]
[1720311015133,1.12944302,3065.0,3064.6,0.05132672]
[1720311015134,0.55,3064.9,3064.6,0.05132672]
[1720311015418,1.12938753,3064.8,3064.6,0.05132672]
[1720311015628,1.67938753,3064.7,3064.6,0.05132672]
[1720311015787,1.12938753,3064.7,3064.6,0.05132672]
[1720311015989,1.67938753,3064.7,3064.6,0.05132672]
[1720311016218,1.67938753,3064.7,3064.4,3.26326]
[1720311016397,0.55,3064.7,3064.6,0.05126373]
[1720311016595,0.55,3064.7,3064.5,0.05126868]
[1720311016801,0.55,3064.8,3064.6,0.05126373]
[1720311016997,1.12944695,3064.7,3064.6,0.05126373]
[1720311017203,1.12944695,3064.7,3064.4,3.26326]
[1720311017204,1.67944695,3064.7,3064.4,3.26326]
[1720311017408,0.55,3064.8,3064.6,0.05127342]
[1720311017611,1.12944233,3064.7,3064.5,0.05127837]
[1720311017924,1.12944233,3064.7,3064.3,3.26333]
[1720311017925,0.55,3064.6,3064.1,3.3213205]
[1720311018329,0.55,3064.6,3064.2,0.05112117]
[1720311018513,1.12951382,3064.5,3064.1,0.0578005]
[1720311018714,1.67951382,3064.4,3064.2,0.05112117]
[1720311018895,1.12961884,3064.3,3064.1,0.0578005]
[1720311019121,0.55,3064.2,3064.1,0.0578005]
[1720311021189,1.67965624,3064.2,3064.1,0.0578005]
[1720311021391,0.55,3064.2,3064.1,0.0578005]
[1720311023711,1.67965041,3064.2,3064.1,0.0578005]
[1720311024218,1.67965015,3064.2,3064.1,0.0578005]
[1720311024620,0.55,3064.2,3064.1,3.3214005]
[1720311024829,0.55,3064.4,3064.1,3.3214005]
[1720311025130,0.55,3064.5,3064.1,3.3214005]
[1720311025384,0.76964668,3064.4,3064.2,3.26348]
[1720311025533,0.55,3064.3,3064.2,6.52688]
[1720311025694,3.0,3064.6,3064.4,3.26324]
[1720311025896,3.0,3064.6,3064.5,0.05119598]
[1720311026129,0.76964063,3064.6,3064.5,3.31436598]
[1720311026430,7.39,3064.7,3064.5,3.31436598]
[1720311026794,0.76968957,3064.6,3064.5,3.31436598]
[1720311026994,1.31968957,3064.6,3064.5,3.31436598]
[1720311029191,2.74279454,3064.6,3064.5,3.31436598]
[1720311029397,1.31968957,3064.6,3064.5,3.31436598]
[1720311030200,3.7494085,3064.6,3064.5,0.05119598]
[1720311030455,6.23538253,3064.6,3064.5,0.05119598]
[1720311030635,6.23538253,3064.6,3064.4,3.2632]
[1720311030636,2.74279262,3064.6,3064.4,3.2632]
[1720311030839,7.39,3064.7,3064.6,3.26306]
[1720311031001,8.70980064,3064.7,3064.6,3.26306]
[1720311031204,8.70980064,3064.7,3064.6,3.31418559]
[1720311031397,7.94,3064.7,3064.6,3.31418559]
[1720311032002,7.94,3064.7,3064.6,3.34876223]
[1720311032342,8.70994714,3064.7,3064.6,3.34876223]
[1720311032644,7.94,3064.7,3064.6,3.34876223]
[1720311032827,8.70996876,3064.7,3064.6,3.34876223]
[1720311033005,7.94,3064.7,3064.6,3.34876223]
[1720311034452,7.94,3064.7,3064.6,0.08570223]
[1720311034744,9.50394169,3064.7,3064.4,3.26327]
[1720311034947,2.271,3064.5,3064.1,0.0578005]
[1720311035104,3.87262278,3064.4,3064.2,0.08572655]
[1720311035311,3.93698506,3064.3,3064.1,0.0578005]
[1720311035617,3.87262278,3064.2,3064.1,0.0578005]
[1720311037414,5.56703617,3064.2,3064.1,0.0578005]
[1720311037815,3.87215061,3064.2,3064.1,0.0578005]
[1720311038144,3.01455165,3064.2,3064.1,0.0578005]
[1720311038349,7.23647544,3064.2,3064.1,0.0578005]
[1720311038538,8.54139567,3064.2,3064.1,0.0578005]
[1720311039741,8.54142354,3064.2,3064.1,0.0578005]
[1720311040345,11.80491354,3064.2,3064.1,0.0578005]
[1720311041309,9.25163091,3064.2,3064.1,0.0578005]
[1720311041519,11.80497921,3064.2,3064.1,0.0578005]
[1720311041825,8.54148921,3064.2,3064.1,0.0578005]
[1720311043608,10.23656484,3064.2,3064.1,0.0578005]
[1720311043918,6.87281782,3064.2,3064.1,0.0578005]
[1720311044111,6.87281782,3064.2,3064.1,0.14377755]
[1720311044342,8.2286537,3064.2,3064.1,0.14377755]
[1720311044670,7.09898317,3064.2,3064.1,0.14377755]
[1720311044851,8.22863611,3064.2,3064.1,0.14377755]
[1720311045428,8.22863611,3064.2,3064.1,0.0578005]
[1720311046333,9.96001859,3064.2,3064.1,0.0578005]
[1720311046533,10.29905632,3064.2,3064.1,0.0578005]
[1720311046732,8.60386765,3064.2,3064.1,0.0578005]
[1720311046942,10.29873901,3064.2,3064.1,0.0578005]
[1720311047550,10.29880649,3064.2,3064.1,0.0578005]
[1720311047763,6.050852,3064.2,3064.1,0.0578005]
[1720311048012,10.29892803,3064.2,3064.1,0.0578005]
[1720311048269,9.16857899,3064.2,3064.1,0.0578005]
[1720311048433,10.29831428,3064.2,3064.1,0.0578005]
[1720311049254,10.29831428,3064.2,3064.1,0.14369831]
[1720311049456,10.29810262,3064.2,3064.1,0.0578005]
[1720311050675,8.6039041,3064.2,3064.1,0.14369831]
[1720311050831,8.6039041,3064.2,3064.1,0.0578005]
[1720311050832,3.87252162,3064.2,3064.1,0.0578005]
[1720311051032,0.76946952,3064.2,3064.1,3.3214005]
[1720311051449,0.76946952,3064.2,3064.1,3.4072765]
[1720311051877,7.39,3064.4,3064.2,3.2634]
[1720311052078,7.39,3064.4,3064.3,3.26338]
[1720311052291,8.15889197,3064.4,3064.3,3.34915177]
[1720311054046,8.70889197,3064.4,3064.3,3.34915177]
[1720311054242,10.13206524,3064.4,3064.3,0.08577177]
[1720311054444,11.4876957,3064.4,3064.3,0.08577177]
[1720311054685,11.4876957,3064.4,3064.1,3.3213105]
[1720311054887,0.76889197,3064.3,3064.1,3.3213105]
[1720311055096,0.76889197,3064.3,3064.2,3.34915181]
[1720311056365,9.29555976,3064.4,3064.2,3.34915181]
[1720311056579,0.7690792,3064.3,3064.2,3.34915181]
[1720311063191,2.19230235,3064.3,3064.2,0.08573181]
[1720311063375,2.85849957,3064.3,3064.2,0.08573181]
[1720311063551,5.63788391,3064.3,3064.2,0.08573181]
[1720311063950,5.97755109,3064.3,3064.2,0.08573181]
[1720311064184,5.97755109,3064.3,3064.1,0.0578005]
[1720311064395,3.87192301,3064.2,3064.1,0.0578005]
[1720311064561,4.52467812,3064.2,3064.1,0.0578005]
[1720311065367,6.79757812,3064.2,3064.1,0.0578005]
[1720311065572,9.79757812,3064.2,3064.1,0.0578005]
[1720311066293,13.06106812,3064.2,3064.1,0.0578005]
[1720311066459,16.29640409,3064.2,3064.1,0.0578005]
[1720311066661,18.33180629,3064.2,3064.1,0.0578005]
[1720311067076,18.3314115,3064.2,3064.1,0.0578005]
[1720311067277,21.5949015,3064.2,3064.1,0.0578005]
[1720311067757,19.90088901,3064.2,3064.1,0.0578005]
[1720311068396,19.90093241,3064.2,3064.1,0.0578005]
[1720311069093,21.85993241,3064.2,3064.1,0.0578005]
[1720311069295,25.45012241,3064.2,3064.1,0.0578005]
[1720311069658,24.31943604,3064.2,3064.1,0.0578005]
[1720311069980,26.38096706,3064.2,3064.1,0.0578005]
[1720311070528,26.38092414,3064.2,3064.1,0.0578005]
[1720311071779,29.64441414,3064.2,3064.1,0.0578005]
[1720311072193,3.2646,3063.2,3062.4,2.3759]
[1720311072419,3.2646,3063.2,3061.0,0.1145005]
[1720311072420,10.79484,3061.4,3061.0,0.1145005]
[1720311072559,3.26669,3061.2,3061.0,0.1145005]
[1720311072761,2.4849554,3061.2,3061.1,0.44]
[1720311073107,1.35298995,3061.7,3061.1,0.44]
[1720311073415,7.61876995,3062.1,3061.1,0.44]
[1720311073559,2.21192564,3062.0,3061.4,3.26644]
[1720311073763,0.55,3062.0,3061.4,3.26644]
[1720311074000,0.55,3062.1,3061.4,3.26644]
[1720311074373,0.55,3062.3,3061.4,3.26644]
[1720311074589,6.81551,3062.3,3061.4,3.26644]
[1720311074811,1.35298995,3062.5,3061.5,0.0653223]
[1720311074980,1.35298995,3062.5,3061.1,0.44]
[1720311074981,1.35298995,3062.9,3061.8,5.58955]
[1720311075321,0.23559449,3062.9,3061.8,5.58955]
[1720311075702,3.26509,3062.7,3061.8,5.58955]
[1720311075912,3.26522,3062.6,3061.8,5.58955]
[1720311076116,3.26509,3062.7,3061.6,3.26621]
[1720311076117,3.2653,3062.5,3061.6,3.26621]
[1720311076278,3.26553,3062.3,3061.3,2.3236]
[1720311076483,3.2653,3062.5,3061.6,3.26618]
[1720311076779,3.2653,3062.5,3061.6,3.33149754]
[1720311076979,3.55,3062.4,3061.6,3.33149754]
[1720311077180,3.55,3062.4,3061.6,3.71808001]
[1720311078009,3.55,3062.4,3061.5,3.26636]
[1720311078010,0.55,3062.4,3061.3,2.3236]
[1720311078184,0.55,3062.5,3061.9,3.26591]
[1720311078522,0.55,3062.7,3062.0,0.06233539]
[1720311079489,3.55,3062.7,3062.0,0.06233539]
[1720311079691,3.26522,3062.6,3062.0,0.06233539]
[1720311079880,1.231522,3062.5,3061.3,2.3236]